bitfinex-derivatives/quotes_SOLF0:USTF0_20250817
["timestamp","ask_amount","ask_price","bid_price","bid_amount"]
[1755428084432,2.99,192.57,192.46,348.84]
[1755428084631,2.99,192.57,192.47,2.97]
[1755428084831,2.99,192.57,192.48,127.44]
[1755428085027,2.99,192.57,192.49,2.97]
[1755428087027,2.99,192.59,192.49,2.97]
[1755428089527,2.88,192.73,192.49,11.63868068]
[1755428089728,2.88,192.71,192.5,2.92]
[1755428089938,2.88,192.69,192.5,2.92]
[1755428090836,2.88,192.69,192.5,8.66868068]
[1755428091036,2.88,192.69,192.51,2.92]
[1755428093131,2.88,192.69,192.53,2.92]
[1755428093326,2.88,192.69,192.55,2.92]
[1755428094633,2.88,192.69,192.56,128.34]
[1755428095129,2.88,192.69,192.58,2.92]
[1755428105144,2.88,192.8,192.58,2.92]
[1755428105342,2.88,192.78,192.58,2.92]
[1755428105644,2.88,192.76,192.58,2.92]
[1755428106543,2.88,192.76,192.6,2.92]
[1755428106745,2.88,192.76,192.61,2.92]
[1755428110240,2.88,192.8,192.61,2.92]
[1755428110639,2.88,192.91,192.61,34.12]
[1755428110836,2.88,192.89,192.63,2.92]
[1755428111037,2.88,192.87,192.63,2.92]
[1755428111244,2.88,192.85,192.65,2.92]
[1755428111438,2.88,192.83,192.65,2.92]
[1755428111637,2.88,192.83,192.67,2.92]
[1755428112147,2.88,192.83,192.6,348.6]
[1755428112148,2.88,192.83,192.69,2.92]
[1755428112345,2.88,192.81,192.71,2.92]
[1755428112545,2.88,192.81,192.72,2.92]
[1755428113046,2.88,192.84,192.72,2.92]
[1755428113238,2.88,192.93,192.72,2.92]
[1755428113438,2.88,192.91,192.72,2.92]
[1755428115142,2.88,192.91,192.74,2.92]
[1755428115343,2.88,192.91,192.76,2.92]
[1755428115542,2.88,192.89,192.75,348.44]
[1755428115947,2.88,192.87,192.75,348.44]
[1755428116338,2.88,192.87,192.76,2.92]
[1755428117246,0.90247792,193.0,192.76,2.92]
[1755428117247,2.88,192.9,192.76,2.92]
[1755428117843,2.88,192.9,192.78,2.79]
[1755428118049,2.88,192.9,192.78,139.69]
[1755428118238,2.88,192.9,192.79,2.79]
[1755428119545,2.88,192.9,192.76,2.79]
[1755428119746,3.70034891,192.89,192.77,137.24]
[1755428119948,2.77,192.88,192.78,2.79]
[1755428122649,2.77,192.88,192.79,137.62]
[1755428124346,2.77,192.88,192.8,2.79]
[1755428126343,3.70260663,192.87,192.75,348.44]
[1755428126549,2.77,192.86,192.76,137.78]
[1755428128649,2.77,192.86,192.76,140.57]
[1755428129250,2.77,192.86,192.77,2.79]
[1755428131846,3.71022744,192.85,192.77,2.79]
[1755428132042,2.77,192.84,192.77,2.79]
[1755428133046,5.84964178,192.92,192.77,2.79]
[1755428133247,2.77,192.9,192.77,2.79]
[1755428133449,2.77,192.88,192.77,2.79]
[1755428133655,2.77,192.86,192.77,2.79]
[1755428134747,2.77,192.89,192.77,2.79]
[1755428134949,5.84964178,192.94,192.77,2.79]
[1755428134950,2.77,192.87,192.77,2.79]
[1755428135446,8.61964178,192.95,192.77,2.79]
[1755428135644,2.77,192.93,192.77,2.79]
[1755428135852,2.77,192.91,192.77,2.79]
[1755428136053,3.71381828,192.9,192.77,2.79]
[1755428136256,6.48381828,192.89,192.77,2.79]
[1755428136456,2.77,192.89,192.77,2.79]
[1755428136847,2.77,192.91,192.77,2.79]
[1755428137952,3.71392567,192.9,192.78,139.72]
[1755428138158,2.77,192.89,192.79,2.79]
[1755428139249,2.77,192.92,192.79,2.79]
[1755428142948,2.77,192.95,192.79,2.79]
[1755428143157,5.84964178,193.07,192.79,2.79]
[1755428143359,8.77446267,193.1,192.79,2.79]
[1755428143360,2.77,193.05,192.79,2.79]
[1755428143661,7.91863943,193.06,192.75,348.44]
[1755428143662,2.77,193.03,192.81,2.79]
[1755428143850,7.91863943,193.02,192.82,139.72]
[1755428144051,2.77,193.0,192.84,2.79]
[1755428144252,2.77,192.98,192.84,2.79]
[1755428147248,2.77,192.98,192.75,348.44]
[1755428147249,3.71422883,192.97,192.85,139.4]
[1755428147456,2.77,193.04,192.86,2.79]
[1755428147654,2.91,193.02,192.86,2.79]
[1755428147854,2.91,193.0,192.86,2.79]
[1755428148050,2.91,192.98,192.86,2.79]
[1755428148259,2.91,192.96,192.86,2.79]
[1755428148460,0.90208023,193.06,192.86,2.79]
[1755428148461,2.91,192.94,192.86,2.79]
[1755428151361,2.91,192.92,192.86,2.79]
[1755428152764,2.91,192.92,192.76,2.88]
[1755428152970,2.91,192.9,192.78,2.88]
[1755428156960,3.73057401,192.89,192.78,2.88]
[1755428157163,2.91,192.9,192.78,2.88]
[1755428157370,3.73172456,192.89,192.78,2.88]
[1755428157569,2.91,192.88,192.78,2.88]
[1755428160667,2.91,192.88,192.75,348.44]
[1755428160668,2.91,192.88,192.8,2.88]
[1755428161060,11.69928356,193.03,192.75,348.44]
[1755428161061,2.91,192.86,192.76,2.88]
[1755428161265,2.91,192.84,192.76,2.88]
[1755428166271,3.73223395,192.83,192.76,2.88]
[1755428166574,2.91,192.82,192.76,2.88]
[1755428166770,2.91,192.82,192.71,138.5]
[1755428166973,2.91,192.8,192.72,2.88]
[1755428167176,2.91,192.78,192.72,2.88]
[1755428167879,2.91,192.78,192.71,138.5]
[1755428168081,2.91,192.78,192.69,2.88]
[1755428168281,3.73124596,192.77,192.69,2.88]
[1755428168576,2.91,192.75,192.69,2.88]
[1755428170377,2.91,192.85,192.69,2.88]
[1755428170578,2.91,192.83,192.69,2.88]
[1755428170775,2.91,192.81,192.69,2.88]
[1755428170974,2.91,192.79,192.69,2.88]
[1755428199300,3.72659637,192.78,192.69,2.88]
[1755428199501,3.03,192.77,192.69,2.88]
[1755428202203,3.03,192.75,192.69,2.88]
[1755428203916,3.03,192.82,192.69,2.88]
[1755428204212,3.03,192.8,192.69,2.88]
[1755428204412,3.7236661,192.79,192.69,2.88]
[1755428204601,6.7536661,192.78,192.69,2.88]
[1755428204805,3.7236661,192.77,192.69,2.88]
[1755428205414,3.03,192.78,192.69,2.88]
[1755428207013,3.03,192.8,192.69,2.88]
[1755428207510,5.84964178,192.88,192.69,2.88]
[1755428207715,348.26,192.92,192.69,2.88]
[1755428207716,2.81,192.82,192.69,2.88]
[1755428208517,2.81,192.9,192.72,2.88]
[1755428208714,2.81,192.88,192.72,2.88]
[1755428208915,2.81,192.86,192.72,2.88]
[1755428209116,2.81,192.86,192.72,11.54868068]
[1755428209413,2.81,192.86,192.73,2.88]
[1755428209714,2.81,192.86,192.66,138.3]
[1755428209715,2.81,192.86,192.75,2.88]
[1755428209904,2.81,192.86,192.77,2.88]
[1755428220830,2.81,192.84,192.77,2.88]
[1755428221126,2.81,192.84,192.76,2.88]
[1755428243239,2.91,192.82,192.76,2.88]
[1755428246639,2.91,192.8,192.76,2.88]
[1755428247942,2.91,192.86,192.76,2.88]
[1755428248144,2.91,192.84,192.76,2.88]
[1755428248335,2.91,192.82,192.76,2.88]
[1755428248534,2.91,192.84,192.76,2.88]
[1755428248741,3.71955038,192.83,192.76,2.88]
[1755428248941,2.91,192.84,192.76,2.88]
[1755428249244,2.91,192.82,192.76,2.88]
[1755428257049,2.91,192.88,192.76,2.88]
[1755428257236,7.93423642,192.87,192.76,2.88]
[1755428257438,2.91,192.85,192.76,2.88]
[1755428257642,3.72420172,192.84,192.76,2.88]
[1755428257937,2.91,192.82,192.76,2.88]
[1755428258142,2.91,192.8,192.76,2.88]
[1755428258948,2.91,192.79,192.76,2.88]
[1755428260549,2.91,192.78,192.76,2.88]
[1755428260744,2.91,192.77,192.75,135.02]
[1755428261144,2.91,192.79,192.75,135.02]
[1755428261340,2.91,192.78,192.76,2.97]
[1755428263449,2.91,192.86,192.76,2.97]
[1755428263652,2.91,192.84,192.76,2.97]
[1755428263952,2.91,192.82,192.76,2.97]
[1755428264147,6.63581612,192.81,192.76,2.97]
[1755428264346,2.91,192.81,192.76,2.97]
[1755428264544,2.91,192.86,192.76,2.97]
[1755428264749,2.91,192.84,192.76,2.97]
[1755428264950,6.63590636,192.83,192.76,2.97]
[1755428265151,3.72590636,192.82,192.76,2.97]
[1755428265352,2.91,192.83,192.76,2.97]
[1755428265554,6.63551277,192.82,192.76,2.97]
[1755428265860,2.91,192.82,192.76,2.97]
[1755428299481,2.82,192.83,192.76,2.97]
[1755428299675,2.82,192.85,192.76,2.97]
[1755428300086,2.82,192.91,192.77,11.51868068]
[1755428300283,2.82,192.89,192.78,2.85]
[1755428304587,2.82,192.96,192.78,2.85]
[1755428304789,7.95378957,192.95,192.78,2.85]
[1755428304981,2.82,192.93,192.78,2.85]
[1755428305176,2.82,192.91,192.78,2.85]
[1755428334705,2.82,192.91,192.79,130.74]
[1755428334898,2.82,192.91,192.8,3.06]
[1755428340404,2.93,192.89,192.8,3.06]
[1755428340608,2.93,192.89,192.81,3.06]
[1755428341211,3.73388026,192.88,192.81,3.06]
[1755428341412,2.93,192.87,192.81,3.06]
[1755428346514,2.93,192.87,192.81,130.74]
[1755428346713,2.93,192.87,192.83,3.06]
[1755428348521,5.84964178,192.96,192.81,130.74]
[1755428348723,2.93,192.94,192.82,3.06]
[1755428349018,2.93,192.92,192.82,3.06]
[1755428349222,3.73878439,192.91,192.82,3.06]
[1755428349423,2.93,192.89,192.82,3.06]
[1755428349621,3.73878439,192.88,192.82,3.06]
[1755428349920,2.93,192.95,192.82,3.06]
[1755428350123,2.93,192.93,192.82,3.06]
[1755428350317,3.73866694,192.92,192.82,3.06]
[1755428350526,2.93,192.95,192.82,3.06]
[1755428350729,3.73754935,192.94,192.82,3.06]
[1755428350920,3.73754935,192.93,192.82,3.06]
[1755428351119,2.93,192.94,192.82,3.06]
[1755428351321,2.93,192.93,192.82,3.06]
[1755428351929,2.93,192.93,192.82,8.66868068]
[1755428352121,2.93,192.93,192.83,3.06]
[1755428353921,2.93,192.93,192.84,130.72]
[1755428354122,2.93,192.93,192.85,3.06]
[1755428354519,2.93,192.93,192.86,130.72]
[1755428354721,2.93,192.93,192.87,3.06]
[1755428354923,2.93,192.93,192.79,8.66868068]
[1755428355130,2.93,192.91,192.8,130.7]
[1755428355425,2.93,192.91,192.81,3.06]
[1755428361431,5.84964178,193.06,192.84,8.66868068]
[1755428361620,11.69928356,193.15,192.89,2.93]
[1755428361621,3.75195663,193.05,192.89,2.93]
[1755428361825,2.79,193.06,192.91,2.93]
[1755428364428,2.79,193.06,192.93,2.93]
[1755428377446,14.62410445,193.3,192.93,2.93]
[1755428377447,2.79,193.23,192.97,18.49]
[1755428377749,2.79,193.21,192.98,2.93]
[1755428378044,2.79,193.21,193.0,2.93]
[1755428380443,2.79,193.21,193.01,2.93]
[1755428382049,2.79,193.19,193.01,2.93]
[1755428395454,3.63018789,193.18,193.01,2.93]
[1755428395662,2.81,193.17,193.01,2.93]
[1755428400369,136.28964178,193.25,193.01,2.93]
[1755428400370,2.81,193.15,193.01,2.93]
[1755428400571,2.81,193.13,193.01,2.93]
[1755428400766,2.81,193.11,193.01,2.93]
[1755428402271,2.81,193.11,192.91,2.85]
[1755428402471,2.81,193.09,192.91,2.85]
[1755428402869,3.64075057,193.08,192.91,2.85]
[1755428403068,2.81,193.06,192.91,2.85]
[1755428404375,2.81,193.17,192.91,2.85]
[1755428404580,2.81,193.15,192.91,2.85]
[1755428404775,2.81,193.13,192.91,2.85]
[1755428404980,2.81,193.11,192.91,2.85]
[1755428405177,2.81,193.13,192.92,2.85]
[1755428405387,2.81,193.13,192.93,2.85]
[1755428405582,2.81,193.17,192.96,2.85]
[1755428405786,2.81,193.17,192.98,15.56]
[1755428405975,2.81,193.17,192.99,2.85]
[1755428406177,2.81,193.17,193.01,2.85]
[1755428406383,2.81,193.17,193.03,2.85]
[1755428406581,2.81,193.17,193.05,2.85]
[1755428406784,2.81,193.17,193.06,130.42]
[1755428407088,2.81,193.17,193.07,2.85]
[1755428410084,2.81,193.17,193.08,130.4]
[1755428410290,2.81,193.17,193.09,2.85]
[1755428411181,2.81,193.17,193.07,133.25]
[1755428412188,2.81,193.17,193.08,2.85]
[1755428417590,2.81,193.17,193.09,130.36]
[1755428417789,2.81,193.17,193.1,2.91]
[1755428418091,2.81,193.17,193.11,130.36]
[1755428418282,2.81,193.17,193.13,2.91]
[1755428418486,2.81,193.17,193.05,2.91]
[1755428418685,2.81,193.17,193.07,2.91]
[1755428418883,2.81,193.17,193.09,2.91]
[1755428419086,2.81,193.17,193.1,130.36]
[1755428419285,2.81,193.17,193.11,2.91]
[1755428420089,2.81,193.17,193.04,347.86]
[1755428420287,2.81,193.17,193.05,133.27]
[1755428420489,66.00437509,193.22,193.05,133.27]
[1755428420490,3.65935439,193.16,193.05,133.27]
[1755428420688,3.04,193.21,193.04,347.86]
[1755428420886,3.04,193.19,193.04,481.13]
[1755428421185,3.04,193.17,193.04,347.86]
[1755428421389,3.04,193.15,193.04,350.77]
[1755428421593,3.04,193.13,193.04,347.86]
[1755428421791,3.04,193.13,193.05,2.91]
[1755428424190,130.34,193.21,193.05,2.91]
[1755428424191,3.04,193.15,193.05,2.91]
[1755428427990,3.04,193.15,193.04,347.86]
[1755428427991,3.04,193.15,193.07,2.91]
[1755428431090,3.04,193.15,193.04,347.86]
[1755428431091,3.04,193.15,193.09,2.91]
[1755428435692,66.00437509,193.22,193.09,2.91]
[1755428435900,3.04,193.19,193.09,2.91]
[1755428437203,3.04,193.19,193.1,130.3]
[1755428437403,3.04,193.19,193.1,133.21]
[1755428438803,3.04,193.19,193.1,2.91]
[1755428439007,3.6464063,193.18,193.1,133.21]
[1755428439306,3.04,193.17,193.1,133.21]
[1755428439500,3.04,193.26,193.11,2.91]
[1755428439706,3.04,193.24,193.11,2.91]
[1755428439898,3.04,193.22,193.11,2.91]
[1755428440099,3.04,193.22,193.12,130.3]
[1755428440299,3.04,193.22,193.13,2.91]
[1755428440501,3.64554292,193.21,193.13,2.91]
[1755428440701,3.04,193.2,193.11,2.91]
[1755428444913,3.04,193.2,193.11,133.19]
[1755428445114,3.04,193.2,193.12,2.91]
[1755428454119,3.04,193.2,193.07,5.71583067]
[1755428454317,3.04,193.2,193.09,2.78]
[1755428456319,2.93,193.18,193.09,2.78]
[1755428457217,4.29368542,193.17,193.09,2.78]
[1755428457517,2.93,193.18,193.09,2.78]
[1755428457715,2.93,193.16,193.09,2.78]
[1755428458511,2.93,193.16,193.06,2.78]
[1755428460810,2.93,193.14,193.06,2.78]
[1755428462729,2.93,193.12,193.02,2.78]
[1755428463117,3.68487681,193.11,193.02,2.78]
[1755428463315,2.93,193.1,193.02,2.78]
[1755428463731,2.93,193.1,192.98,2.78]
[1755428464035,2.93,193.08,192.98,2.78]
[1755428464227,2.93,193.06,192.98,2.78]
[1755428469929,2.93,193.06,192.91,2.78]
[1755428470229,2.93,193.06,192.92,2.78]
[1755428471222,4.30325262,193.05,192.92,2.78]
[1755428471429,2.93,193.03,192.92,2.78]
[1755428471633,2.93,193.01,192.92,2.78]
[1755428484940,2.93,193.01,192.8,2.79]
[1755428489345,2.93,193.01,192.81,130.32]
[1755428489642,2.93,193.01,192.82,2.79]
[1755428489841,2.93,193.01,192.84,2.79]
[1755428496446,2.93,193.01,192.86,2.79]
[1755428497151,2.76,193.03,192.88,2.79]
[1755428499753,2.76,193.03,192.89,2.79]
[1755428504248,2.76,193.05,192.89,2.79]
[1755428505954,2.76,193.05,192.89,8.66868068]
[1755428506156,2.76,193.05,192.9,2.79]
[1755428506450,5.84964178,193.15,192.9,2.79]
[1755428506451,2.76,193.08,192.91,8.66868068]
[1755428506650,2.76,193.08,192.92,2.79]
[1755428506856,2.76,193.08,192.94,2.79]
[1755428508546,4.36437983,193.07,192.94,2.79]
[1755428508747,2.76,193.08,192.95,2.94]
[1755428508955,2.99,193.06,192.95,2.94]
[1755428512960,2.99,193.06,192.95,130.22]
[1755428513150,2.99,193.06,192.96,2.94]
[1755428513949,2.99,193.06,192.96,130.2]
[1755428514248,2.99,193.06,192.97,2.94]
[1755428515056,2.99,193.06,192.95,127.953]
[1755428516064,2.99,193.06,192.93,348.08]
[1755428516251,2.99,193.06,192.94,130.2]
[1755428516957,3.68873299,193.05,192.94,130.2]
[1755428517157,2.99,193.06,192.95,2.94]
[1755428517356,2.99,193.04,192.95,2.94]
[1755428526362,2.99,193.04,192.92,130.18]
[1755428526363,2.99,193.02,192.93,2.94]
[1755428527865,2.99,193.02,192.92,130.18]
[1755428528069,2.99,193.02,192.93,2.94]
[1755428528457,3.69311517,193.01,192.93,2.94]
[1755428528765,2.99,193.0,192.93,2.94]
[1755428528962,2.99,193.0,192.91,2.94]
[1755428529762,3.69397269,192.99,192.91,2.94]
[1755428529968,2.99,192.98,192.91,2.94]
[1755428535763,2.99,192.98,192.86,478.18]
[1755428535964,2.99,192.98,192.87,2.94]
[1755428538069,2.89,192.96,192.87,2.94]
[1755428540674,2.89,193.05,192.87,2.94]
[1755428540982,2.89,193.03,192.87,2.94]
[1755428541271,2.89,193.01,192.87,2.94]
[1755428546279,2.89,192.99,192.83,2.94]
[1755428546470,2.89,192.97,192.84,2.94]
[1755428554585,2.89,192.97,192.86,2.94]
[1755428556795,3.71102186,192.96,192.86,2.94]
[1755428556989,2.89,192.95,192.86,2.94]
[1755428563290,2.89,192.93,192.86,2.94]
[1755428566597,2.89,193.02,192.86,2.94]
[1755428566801,2.89,193.0,192.86,2.94]
[1755428567091,2.89,192.98,192.86,2.94]
[1755428567297,2.89,192.96,192.86,2.94]
[1755428567500,3.02,192.94,192.86,2.94]
[1755428568492,3.02,192.92,192.76,2.77]
[1755428568698,3.02,192.9,192.78,2.77]
[1755428573196,3.71407503,192.89,192.78,2.77]
[1755428573405,3.02,192.88,192.78,2.77]
[1755428574698,3.71326525,192.87,192.78,2.77]
[1755428574905,3.02,192.88,192.78,2.77]
[1755428581607,3.02,192.93,192.78,2.77]
[1755428581809,363.76,193.03,192.78,2.77]
[1755428581810,3.7076851,192.92,192.78,2.77]
[1755428581999,3.02,192.98,192.78,2.77]
[1755428582205,3.02,192.96,192.78,2.77]
[1755428582713,3.02,192.94,192.8,2.77]
[1755428582917,3.02,192.94,192.82,2.77]
[1755428583116,3.02,192.94,192.83,2.77]
[1755428583510,3.02,192.92,192.83,2.77]
[1755428588324,3.02,192.99,192.83,2.77]
[1755428588518,3.02,192.97,192.83,2.77]
[1755428589117,3.02,192.99,192.83,2.77]
[1755428593922,3.02,192.99,192.84,348.22]
[1755428594128,3.02,192.99,192.85,2.77]
[1755428594921,3.02,193.05,192.85,2.77]
[1755428595120,3.02,193.03,192.85,2.77]
[1755428595322,3.02,193.01,192.85,2.77]
[1755428597330,3.02,193.01,192.87,2.77]
[1755428597720,3.02,193.01,192.88,2.81]
[1755428600329,3.02,193.01,192.88,129.88]
[1755428600528,3.02,193.01,192.89,2.81]
[1755428604138,2.78,192.99,192.89,2.81]
[1755428608030,2.78,192.99,192.87,2.81]
[1755428618743,75.03737889,193.06,192.87,2.81]
[1755428618744,2.78,193.02,192.87,2.81]
[1755428621046,2.78,193.02,192.88,129.78]
[1755428621250,2.78,193.02,192.89,2.81]
[1755428623849,2.78,193.02,192.91,2.81]
[1755428633160,3.73877691,193.01,192.91,2.81]
[1755428633453,2.83,193.0,192.91,2.81]
[1755428660972,3.74154063,192.99,192.91,2.81]
[1755428661169,2.92,193.08,192.91,2.81]
[1755428661467,2.92,193.06,192.91,2.81]
[1755428661668,2.92,193.04,192.91,2.81]
[1755428661867,130.90192826,193.09,192.91,2.81]
[1755428661868,2.92,193.02,192.91,2.81]
[1755428662068,2.92,193.0,192.91,2.81]
[1755428662268,2.92,192.98,192.91,2.81]
[1755428673675,8.03709496,192.97,192.86,2.91]
[1755428673880,2.92,192.96,192.86,2.91]
[1755428674270,2.92,192.94,192.86,2.91]
[1755428674668,3.72183339,192.93,192.85,477.48]
[1755428674869,6.64203017,192.92,192.85,129.42]
[1755428675074,2.92,192.91,192.85,129.42]
[1755428676569,2.92,192.91,192.74,356.72868068]
[1755428676774,2.92,192.91,192.76,2.91]
[1755428678573,2.92,192.89,192.76,2.91]
[1755428679272,2.92,192.89,192.75,129.42]
[1755428679473,2.92,192.89,192.76,2.91]
[1755428700687,2.92,192.89,192.77,3.07]
[1755428715098,2.89,192.87,192.77,3.07]
[1755428718200,2.8,192.85,192.77,3.07]
[1755428720092,2.8,192.85,192.74,129.28]
[1755428720292,2.8,192.85,192.75,2.83]
[1755428721196,2.8,192.83,192.75,2.83]
[1755428722792,2.8,192.85,192.75,2.83]
[1755428723302,2.8,192.96,192.75,2.83]
[1755428723497,5.84964178,192.97,192.75,2.83]
[1755428723498,2.8,192.94,192.75,2.83]
[1755428723694,2.8,192.92,192.75,2.83]
[1755428723903,2.8,192.9,192.75,2.83]
[1755428724195,2.8,192.88,192.75,2.83]
[1755428724401,2.8,192.86,192.75,2.83]
[1755428738109,3.76318951,192.85,192.75,2.83]
[1755428738408,2.8,192.86,192.75,2.83]
[1755428738611,2.8,192.84,192.75,2.83]
[1755428749716,5.84964178,192.94,192.75,2.83]
[1755428749717,3.04,192.82,192.75,2.83]
[1755428750308,3.84062718,192.81,192.7,2.83]
[1755428750510,8.19914926,192.8,192.7,2.83]
[1755428750713,3.04,192.78,192.7,2.83]
[1755428750911,3.04,192.76,192.7,2.83]
[1755428752119,3.04,192.74,192.67,2.83]
[1755428753616,3.04,192.74,192.64,2.83]
[1755428755515,3.04,192.76,192.64,2.83]
[1755428761421,3.04,192.76,192.66,2.83]
[1755428773933,3.04,192.76,192.64,128.88]
[1755428773934,3.04,192.76,192.65,2.83]
[1755428774130,3.83226664,192.75,192.65,2.83]
[1755428774331,3.04,192.74,192.65,2.83]
[1755428779133,3.04,192.74,192.64,2.79]
[1755428788346,3.04,192.74,192.65,128.8]
[1755428788651,3.04,192.74,192.66,2.79]
[1755428805958,3.04,192.74,192.67,128.68]
[1755428806166,3.04,192.74,192.68,2.79]
[1755428825777,2.95,192.83,192.68,2.79]
[1755428825979,73.964813,192.84,192.68,2.79]
[1755428825980,2.95,192.81,192.68,2.79]
[1755428826178,2.95,192.79,192.68,2.79]
[1755428826473,2.95,192.77,192.68,2.79]
[1755428835975,0.90305169,192.84,192.68,2.79]
[1755428836176,354.34964178,192.89,192.69,8.65941951]
[1755428836177,2.95,192.82,192.69,8.65941951]
[1755428836485,2.95,192.82,192.7,2.82]
[1755428837184,2.95,192.82,192.72,2.82]
[1755428840282,2.95,192.82,192.73,3.06]
[1755428845386,3.01,192.8,192.73,3.06]
[1755428846790,3.01,192.8,192.7,3.06]
[1755428855191,7.99932721,192.79,192.7,3.06]
[1755428855499,3.01,192.77,192.7,3.06]
[1755428857885,3.01,192.75,192.67,3.06]
[1755428876808,3.01,192.75,192.65,2.78]
[1755428880307,7.98723278,192.74,192.65,128.18]
[1755428880604,2.83,192.81,192.66,2.78]
[1755428880806,2.83,192.79,192.66,2.78]
[1755428881105,2.83,192.77,192.66,2.78]
[1755428881299,2.83,192.75,192.66,2.78]
[1755428881606,2.83,192.73,192.66,2.78]
[1755428890922,2.83,192.81,192.66,2.78]
[1755428891118,2.83,192.79,192.68,2.78]
[1755428892716,2.83,192.79,192.68,11.43941951]
[1755428892917,2.83,192.79,192.69,2.78]
[1755428901018,2.83,192.79,192.69,8.65941951]
[1755428901224,2.83,192.79,192.7,2.88]
[1755428923936,2.83,192.79,192.65,348.48]
[1755428924132,2.83,192.79,192.66,2.88]
[1755428926340,8.00356762,192.78,192.66,2.88]
[1755428926537,2.83,192.79,192.66,2.88]
[1755428926834,65.59101095,192.85,192.66,2.88]
[1755428926835,3.0,192.76,192.66,2.88]
[1755428942640,3.0,192.76,192.67,8.65941951]
[1755428942843,3.0,192.76,192.68,3.06]
[1755428947444,3.0,192.76,192.68,11.71941951]
[1755428947642,3.0,192.76,192.68,3.06]
[1755428948249,3.0,192.76,192.68,11.71941951]
[1755428948446,3.0,192.76,192.69,3.06]
[1755428948951,2.97,192.84,192.69,3.06]
[1755428949142,2.97,192.82,192.69,3.06]
[1755428950351,4.33181608,192.81,192.69,3.06]
[1755428950546,2.97,192.8,192.69,3.06]
[1755428952149,2.97,192.8,192.69,11.71941951]
[1755428952649,2.97,192.8,192.7,3.06]
[1755428956554,8.01365003,192.79,192.7,3.06]
[1755428956858,8.01394712,192.78,192.7,3.06]